bitfinex-derivatives/quotes_BTCF0:USTF0_20250416
["timestamp","ask_amount","ask_price","bid_price","bid_amount"]
[1744814570137,0.1182449,84577.0,84576.0,0.5298463]
[1744814570526,0.1182449,84577.0,84576.0,0.5794463]
[1744814571349,0.1182449,84577.0,84576.0,0.5824463]
[1744814571848,0.1183249,84577.0,84576.0,0.4642]
[1744814572039,0.1183249,84577.0,84576.0,0.5824463]
[1744814572240,0.1183249,84577.0,84576.0,0.4146]
[1744814573744,0.1183249,84577.0,84576.0,0.5815463]
[1744814573945,0.1182449,84577.0,84576.0,0.5815463]
[1744814574139,0.1183249,84577.0,84576.0,0.5815463]
[1744814574476,0.1182449,84577.0,84576.0,0.5815463]
[1744814574644,0.1183249,84577.0,84576.0,0.5815463]
[1744814575553,0.1183249,84577.0,84576.0,0.7315463]
[1744814575941,0.12044586,84584.0,84583.0,0.1182365]
[1744814576243,0.12044586,84584.0,84583.0,0.6490365]
[1744814576440,0.12044586,84584.0,84583.0,0.7494365]
[1744814576644,0.12052586,84584.0,84583.0,0.7494365]
[1744814576942,0.12044586,84584.0,84583.0,0.7494365]
[1744814577142,0.12052586,84584.0,84583.0,0.7494365]
[1744814577349,0.12052586,84584.0,84583.0,0.7504365]
[1744814578254,0.12052586,84584.0,84583.0,0.7604365]
[1744814578954,0.12044586,84584.0,84583.0,0.7604365]
[1744814579143,0.12052586,84584.0,84583.0,0.7604365]
[1744814579647,8e-05,84584.0,84583.0,0.7604365]
[1744814580143,8e-05,84584.0,84583.0,0.8535165]
[1744814583251,8e-05,84584.0,84583.0,1.2143165]
[1744814585960,8e-05,84584.0,84583.0,1.2183165]
[1744814586453,0.005,84592.0,84591.0,0.1182253]
[1744814586653,0.005,84592.0,84591.0,0.6490253]
[1744814586870,0.005,84592.0,84591.0,0.8004253]
[1744814587768,0.005,84592.0,84591.0,0.7472253]
[1744814587769,0.1232239,84592.0,84591.0,0.7472253]
[1744814588165,0.2246239,84592.0,84591.0,0.7532253]
[1744814588960,0.2246239,84592.0,84591.0,0.7552253]
[1744814592169,0.2246239,84592.0,84591.0,0.7064253]
[1744814593869,0.2246239,84592.0,84591.0,0.4182]
[1744814594170,0.2246239,84592.0,84591.0,0.008]
[1744814594765,0.2246239,84592.0,84591.0,0.002]
[1744814594959,0.2246239,84592.0,84591.0,0.008]
[1744814595174,0.2246239,84592.0,84591.0,0.1262253]
[1744814595370,0.1064,84592.0,84591.0,0.4850253]
[1744814595565,0.00019684,84610.0,84591.0,1.02188]
[1744814595870,0.11839554,84610.0,84609.0,0.4790001]
[1744814596065,0.1182001,84609.0,84608.0,0.0535]
[1744814596269,0.1182183,84596.0,84592.0,0.00017739]
[1744814596675,0.1182225,84593.0,84592.0,0.11840129]
[1744814597068,0.2169178,84597.0,84596.0,0.1182183]
[1744814597467,0.1578885,84597.0,84596.0,0.1182183]
[1744814597865,0.09878,84597.0,84596.0,0.1182183]
[1744814598070,8e-05,84597.0,84596.0,0.6590183]
[1744814598274,8e-05,84597.0,84596.0,0.7646183]
[1744814598469,0.0503,84603.0,84602.0,0.1182099]
[1744814598673,0.0503,84603.0,84602.0,0.2882099]
[1744814599066,0.15021798,84604.0,84603.0,0.1182085]
[1744814599263,0.15021798,84604.0,84603.0,0.6816085]
[1744814599670,0.15021798,84604.0,84603.0,0.4790085]
[1744814599867,0.26842508,84604.0,84603.0,0.4790085]
[1744814600269,0.26842508,84604.0,84603.0,0.4810085]
[1744814600477,0.26850508,84604.0,84603.0,0.5347085]
[1744814600877,0.31730508,84604.0,84603.0,0.5347085]
[1744814601067,0.36880508,84604.0,84603.0,0.5347085]
[1744814601267,0.2185871,84604.0,84603.0,0.5397085]
[1744814601476,0.05158,84604.0,84603.0,0.7197085]
[1744814601777,8e-05,84604.0,84603.0,0.7197085]
[1744814601981,8e-05,84604.0,84603.0,0.74163626]
[1744814602176,0.1182002,84609.0,84608.0,0.1182015]
[1744814602379,0.0590989,84611.0,84610.0,0.1181987]
[1744814602575,0.0590989,84611.0,84610.0,0.2881987]
[1744814602769,0.0590989,84611.0,84610.0,0.1181987]
[1744814602976,0.0590989,84611.0,84610.0,0.3296987]
[1744814603173,0.0590989,84611.0,84610.0,0.0515]
[1744814603383,0.1182071,84604.0,84603.0,0.005]
[1744814603581,0.1182071,84604.0,84603.0,0.1232085]
[1744814603899,0.1182071,84604.0,84603.0,0.2732085]
[1744814604177,0.1182071,84604.0,84603.0,0.2682085]
[1744814604380,0.1700071,84604.0,84603.0,0.2682085]
[1744814604578,0.1700071,84604.0,84603.0,0.152]
[1744814604778,0.2193071,84604.0,84603.0,0.2702085]
[1744814605173,0.2193071,84604.0,84603.0,0.152]
[1744814605371,0.2193071,84604.0,84603.0,0.2702085]
[1744814605584,0.2193071,84604.0,84603.0,0.2752085]
[1744814606281,0.2193071,84604.0,84603.0,0.2742085]
[1744814606479,0.2193071,84604.0,84603.0,0.1242085]
[1744814607781,0.2193071,84604.0,84603.0,0.006]
[1744814607981,0.2193071,84604.0,84603.0,0.004]
[1744814608780,0.5801071,84604.0,84603.0,0.004]
[1744814609886,0.5801071,84604.0,84603.0,0.184]
[1744814610075,0.5801071,84604.0,84603.0,0.183]
[1744814611287,0.5801071,84604.0,84603.0,0.18]
[1744814611481,0.2193071,84604.0,84603.0,0.182]
[1744814611684,0.1700071,84604.0,84603.0,0.3002085]
[1744814611983,0.0591008,84608.0,84607.0,0.1182029]
[1744814612184,0.00019684,84613.0,84612.0,0.059098]
[1744814612378,0.11839144,84613.0,84612.0,0.219098]
[1744814612578,0.1181946,84613.0,84612.0,0.322298]
[1744814612775,0.29806847,84613.0,84612.0,0.372598]
[1744814615187,0.29806847,84613.0,84612.0,0.374598]
[1744814615379,0.005,84618.0,84617.0,0.118189]
[1744814615590,0.059093,84620.0,84616.0,0.2816815]
[1744814615799,0.1772813,84619.0,84618.0,0.1181876]
[1744814615990,0.2268813,84619.0,84618.0,0.2781876]
[1744814616189,0.2761813,84619.0,84618.0,0.2781876]
[1744814616382,0.2762613,84619.0,84618.0,0.2781876]
[1744814616589,0.2762613,84619.0,84618.0,0.1181876]
[1744814616780,0.1580737,84619.0,84618.0,0.2881876]
[1744814616982,0.1087737,84619.0,84618.0,0.2881876]
[1744814617178,8e-05,84619.0,84618.0,0.2881876]
[1744814617383,0.1181862,84619.0,84618.0,0.2881876]
[1744814617688,0.1182662,84619.0,84618.0,0.1181876]
[1744814617990,0.118189,84617.0,84616.0,0.1710904]
[1744814618187,0.118189,84617.0,84616.0,0.3510904]
[1744814618387,0.118189,84617.0,84616.0,0.35975678]
[1744814618994,0.118189,84617.0,84616.0,0.36075678]
[1744814619186,0.1182663,84619.0,84616.0,0.30166158]
[1744814619491,0.1182663,84619.0,84618.0,0.1181876]
[1744814619492,0.1181863,84619.0,84618.0,0.1181876]
[1744814619691,0.1182663,84619.0,84618.0,0.2981876]
[1744814620288,8e-05,84619.0,84618.0,0.7106876]
[1744814620585,0.0590861,84629.0,84628.0,0.177259]
[1744814620985,0.0590868,84628.0,84627.0,0.0517]
[1744814621179,0.0590868,84628.0,84627.0,0.349875]
[1744814621380,0.0590868,84628.0,84627.0,0.169875]
[1744814621784,0.1121868,84628.0,84627.0,0.169875]
[1744814622079,0.1121868,84628.0,84627.0,0.349875]
[1744814622080,0.0590868,84628.0,84627.0,0.349875]
[1744814622589,0.5380537,84633.0,84632.0,0.118168]
[1744814622897,0.00026573,84640.0,84639.0,0.1181582]
[1744814623188,0.4124,84669.0,84639.0,0.7108]
[1744814623389,0.1181261,84662.0,84661.0,0.3608]
[1744814623594,0.1181238,84664.0,84661.0,0.5798634]
[1744814623789,0.1181238,84664.0,84663.0,0.1181234]
[1744814624090,0.0590623,84664.0,84663.0,0.1181248]
[1744814624288,0.4174,84670.0,84669.0,0.1181164]
[1744814624289,0.123115,84670.0,84669.0,0.1181164]
[1744814624589,0.1181164,84669.0,84668.0,0.3608]
[1744814624781,0.2188164,84669.0,84668.0,0.3608]
[1744814624982,0.1695164,84669.0,84668.0,0.4789178]
[1744814625179,0.005,84670.0,84669.0,0.1181164]
[1744814625386,0.123115,84670.0,84669.0,0.3214164]
[1744814625588,0.005,84670.0,84669.0,0.3214164]
[1744814625784,0.0537,84682.0,84677.0,0.2362046]
[1744814626089,0.0590523,84678.0,84677.0,0.1181036]
[1744814626297,0.05916031,84678.0,84677.0,0.0590513]
[1744814626482,0.0590523,84678.0,84677.0,0.2190513]
[1744814626884,0.0591323,84678.0,84677.0,0.2190513]
[1744814627688,0.1181052,84677.0,84676.0,0.4789066]
[1744814627884,0.1181052,84677.0,84676.0,0.6389066]
[1744814628281,0.1181838,84678.0,84677.0,0.1181052]
[1744814628485,0.1181038,84678.0,84677.0,0.2881052]
[1744814629183,0.0590499,84681.0,84680.0,0.118101]
[1744814629382,0.0590499,84681.0,84680.0,0.288101]
[1744814629690,0.0590499,84681.0,84680.0,0.118101]
[1744814629992,0.1181024,84679.0,84678.0,0.3608]
[1744814630180,0.1181024,84679.0,84678.0,0.4789038]
[1744814632093,0.1181024,84679.0,84678.0,0.3608]
[1744814632293,0.1181024,84679.0,84678.0,0.4789038]
[1744814632487,0.1181024,84679.0,84678.0,0.3608]
[1744814632682,0.2211024,84679.0,84678.0,0.4789038]
[1744814633089,0.1181024,84679.0,84678.0,0.4789038]
[1744814633491,0.1181824,84679.0,84678.0,0.4789038]
[1744814634082,8e-05,84679.0,84678.0,0.4789038]
[1744814634313,0.1181824,84679.0,84678.0,0.4789038]
[1744814634488,0.1181024,84679.0,84678.0,0.4789038]
[1744814634791,0.1181824,84679.0,84678.0,0.4789038]
[1744814636494,0.1771483,84687.0,84678.0,0.6353]
[1744814636793,0.1771483,84687.0,84686.0,0.4788899]
[1744814636794,0.1180968,84687.0,84686.0,0.4788899]
[1744814637582,0.1180968,84687.0,84686.0,0.5820899]
[1744814638391,0.11960588,84687.0,84686.0,0.5820899]
[1744814639499,0.1203628,84687.0,84686.0,0.5820899]
[1744814639689,0.1204428,84687.0,84686.0,0.5820899]
[1744814640496,0.002346,84687.0,84686.0,0.5820899]
[1744814640800,0.0590321,84707.0,84695.0,0.1180801]
[1744814641100,0.12322451,84696.0,84695.0,0.5718401]
[1744814641295,0.12322451,84696.0,84695.0,0.7244401]
[1744814641499,0.1230787,84696.0,84695.0,0.5134]
[1744814641702,0.1231587,84696.0,84695.0,0.5134]
[1744814642788,0.12444929,84696.0,84695.0,0.6314801]
[1744814642994,0.12444929,84696.0,84695.0,0.4612]
[1744814643195,0.22484929,84696.0,84695.0,0.4612]
[1744814643798,0.22484929,84696.0,84695.0,0.5792801]
[1744814643992,0.17274929,84696.0,84695.0,0.5792801]
[1744814644192,0.17274929,84696.0,84695.0,0.4612]
[1744814645095,0.12444929,84696.0,84695.0,0.5792801]
[1744814645594,0.12436929,84696.0,84695.0,0.5792801]
[1744814645799,0.12444929,84696.0,84695.0,0.5792801]
[1744814647603,0.12444929,84696.0,84695.0,0.7392801]
[1744814647895,0.12436929,84696.0,84695.0,0.7392801]
[1744814648102,0.00637059,84696.0,84695.0,0.7887801]
[1744814648601,0.00629059,84696.0,84695.0,0.7887801]
[1744814648797,0.00508,84696.0,84695.0,0.7887801]
[1744814648997,0.00712747,84696.0,84695.0,0.7887801]
[1744814649591,0.00704747,84696.0,84695.0,0.7887801]
[1744814649799,0.35,84700.0,84695.0,1.0207]
[1744814649989,0.00026573,84718.0,84695.0,1.0207]
[1744814649990,0.0590149,84732.0,84700.0,0.590361]
[1744814650188,0.1180382,84731.0,84730.0,0.0590134]
[1744814650496,0.0590181,84731.0,84730.0,0.5698134]
[1744814650696,0.0590981,84731.0,84730.0,0.5108]
[1744814650901,0.0590981,84731.0,84730.0,0.3608]
[1744814651289,0.0590142,84733.0,84730.0,0.6488313]
[1744814651290,0.0359123,84733.0,84730.0,0.6488313]
[1744814651498,0.05842202,84746.0,84734.0,0.0590127]
[1744814651697,0.00010801,84750.0,84749.0,0.1180049]
[1744814652003,0.1180035,84750.0,84749.0,0.3608]
[1744814652195,0.1180035,84750.0,84749.0,0.45372]
[1744814652798,0.1180835,84750.0,84749.0,0.45372]
[1744814652991,0.1180835,84750.0,84749.0,0.3608]
[1744814653196,0.177015,84747.0,84746.0,0.0590042]
[1744814653390,0.1180077,84747.0,84746.0,0.18]
[1744814653589,0.1180877,84747.0,84746.0,0.2980091]
[1744814653790,8e-05,84747.0,84746.0,0.2980091]
[1744814653996,0.1180043,84750.0,84749.0,0.1180049]
[1744814654302,0.0590005,84752.0,84751.0,0.1180021]
[1744814654698,0.1180016,84752.0,84751.0,0.1770026]
[1744814655097,0.0589991,84754.0,84753.0,0.1179993]
[1744814655293,0.0589964,84758.0,84757.0,0.1179937]
[1744814655496,0.17870845,84760.0,84759.0,0.117991]
[1744814655707,0.17870845,84760.0,84759.0,0.277991]
[1744814655896,0.18022194,84760.0,84759.0,0.277991]
[1744814656103,0.18030194,84760.0,84759.0,0.277991]
[1744814656306,0.29829154,84760.0,84759.0,0.297991]
[1744814656494,0.29745154,84760.0,84759.0,0.117991]
[1744814656895,0.1179924,84758.0,84757.0,0.4787937]
[1744814657099,0.12036219,84758.0,84757.0,0.3608]
[1744814658005,0.00236979,84758.0,84757.0,0.4787937]
[1744814658204,0.00236979,84758.0,84757.0,0.6287937]
[1744814658398,0.12036219,84758.0,84757.0,0.4787937]
[1744814659901,0.12036219,84758.0,84757.0,0.3608]
[1744814661697,0.12044219,84758.0,84757.0,0.4787937]
[1744814661896,0.0590006,84752.0,84740.0,0.3608]
[1744814662203,0.1180146,84742.0,84740.0,0.3608]
[1744814662398,0.1180286,84732.0,84731.0,0.3608]
[1744814662601,0.1180286,84732.0,84719.0,0.36587557]
[1744814662602,0.1180453,84720.0,84719.0,0.36587557]
[1744814662803,0.1180453,84720.0,84719.0,0.00507557]
[1744814662999,0.1180453,84720.0,84719.0,0.36587557]
[1744814663203,0.1180453,84720.0,84719.0,0.00507557]
[1744814663511,0.3680453,84720.0,84719.0,7e-08]
[1744814663807,0.37202622,84720.0,84719.0,7e-08]
[1744814664599,0.12202622,84720.0,84719.0,0.11804677]
[1744814664797,0.00398092,84720.0,84719.0,0.11804677]
[1744814665002,0.00398092,84720.0,84719.0,0.29804677]
[1744814665411,0.12202622,84720.0,84719.0,0.29804677]
[1744814665614,0.12210622,84720.0,84719.0,0.11804677]
[1744814665805,0.12202622,84720.0,84719.0,0.11804677]
[1744814666007,0.12210622,84720.0,84719.0,0.11804677]
[1744814666412,0.00398092,84720.0,84719.0,0.64884677]
[1744814666608,0.11803,84731.0,84727.0,0.1180355]
[1744814666802,0.11803,84731.0,84727.0,0.6488355]
[1744814667001,0.048,84743.0,84727.0,0.6488355]
[1744814667307,0.11829008,84728.0,84727.0,0.6588355]
[1744814667608,0.00025598,84728.0,84727.0,0.6588355]
[1744814668514,0.00186806,84728.0,84727.0,0.6588355]
[1744814669107,0.00186806,84728.0,84727.0,0.6648355]
[1744814669915,0.1770222,84744.0,84743.0,0.1180105]
[1744814670104,0.1770222,84744.0,84743.0,0.4788105]
[1744814670511,0.1180102,84749.0,84748.0,0.1180049]
[1744814672709,0.1701102,84749.0,84748.0,0.1180049]
[1744814672911,0.0590041,84747.0,84744.0,0.1180108]
[1744814673114,0.1180118,84745.0,84744.0,0.1770163]
[1744814673716,0.1180118,84744.0,84743.0,0.3608]
[1744814674015,0.17022271,84744.0,84743.0,0.4788132]
[1744814674413,0.11962271,84744.0,84743.0,0.4788132]
[1744814675417,0.11962271,84744.0,84743.0,0.4798132]
[1744814675619,0.11970271,84744.0,84743.0,0.4798132]
[1744814676519,0.11970271,84744.0,84743.0,0.3618]
[1744814676812,0.11970271,84744.0,84743.0,0.4798132]
[1744814677115,0.16850271,84744.0,84743.0,0.4798132]
[1744814677716,0.11970271,84744.0,84743.0,0.4798132]
[1744814677916,0.00161091,84744.0,84743.0,0.4798132]
[1744814678117,0.11970271,84744.0,84743.0,0.4798132]
[1744814679210,0.00169091,84744.0,84743.0,0.4798132]
[1744814679913,0.00330384,84744.0,84743.0,0.6498132]
[1744814680212,0.00330384,84744.0,84743.0,0.5305132]
[1744814680409,0.00322384,84744.0,84743.0,0.5305132]
[1744814680604,0.00330384,84744.0,84743.0,0.5305132]
[1744814682215,0.15569921,84762.0,84755.0,0.1179965]
[1744814682216,0.00014581,84762.0,84755.0,0.1179965]
[1744814682409,0.1179951,84756.0,84755.0,0.4787965]
[1744814682617,0.0589942,84761.0,84755.0,0.4197976]
[1744814682912,8e-05,84756.0,84755.0,0.6477941]
[1744814683512,8e-05,84756.0,84755.0,0.3608]
[1744814683513,0.1180751,84756.0,84755.0,0.3608]
[1744814683715,0.1180751,84756.0,84755.0,0.4787965]
[1744814683916,0.1180751,84756.0,84755.0,0.3608]
[1744814684212,0.1190751,84756.0,84755.0,0.4787965]
[1744814684411,0.1667751,84756.0,84755.0,0.5308965]
[1744814684611,0.1667751,84756.0,84755.0,0.53962332]
[1744814684811,0.1657751,84756.0,84755.0,0.4129]
[1744814685011,0.1657751,84756.0,84755.0,0.0521]
[1744814685516,0.1180105,84745.0,84744.0,0.09652]
[1744814685713,0.1180105,84745.0,84744.0,0.07]
[1744814686418,0.22212343,84745.0,84744.0,0.07]
[1744814687010,0.22212343,84745.0,84744.0,0.071]
[1744814687420,0.22212343,84745.0,84744.0,0.001]
[1744814690724,0.17202343,84745.0,84744.0,0.001]
[1744814690925,0.22022343,84745.0,84744.0,0.001]
[1744814691220,0.17202343,84745.0,84744.0,0.001]
[1744814691719,0.118016,84741.0,84740.0,6e-08]
[1744814692223,0.52092893,84741.0,84740.0,6e-08]
[1744814692416,0.53025135,84741.0,84740.0,6e-08]
[1744814693023,0.1180341,84728.0,84727.0,0.3608]
[1744814693414,0.11964703,84728.0,84727.0,0.3608]
[1744814694017,0.11983519,84728.0,84727.0,0.3608]
[1744814694223,0.11983519,84728.0,84727.0,0.3668]
[1744814694816,0.11983519,84728.0,84727.0,0.4848355]
[1744814695022,0.11991519,84728.0,84727.0,0.3668]
[1744814695320,0.11991519,84728.0,84727.0,0.4848355]
[1744814695512,0.11983519,84728.0,84727.0,0.3668]
[1744814695723,0.11983519,84728.0,84727.0,0.4667]
[1744814696226,0.11991519,84728.0,84727.0,0.4667]
[1744814696719,0.16851519,84728.0,84727.0,0.3668]
[1744814697722,0.22031519,84728.0,84727.0,0.3668]
[1744814699325,0.17171519,84728.0,84727.0,0.3668]
[1744814699524,0.17163519,84728.0,84727.0,0.3668]
[1744814699829,0.17171519,84728.0,84727.0,0.3668]
[1744814700135,0.22151519,84728.0,84727.0,0.3668]
[1744814700432,0.22151519,84728.0,84727.0,0.006]
[1744814700627,0.1180453,84720.0,84719.0,0.00017713]
[1744814700837,0.118055,84713.0,84712.0,0.0518]
[1744814701133,0.1180648,84706.0,84697.0,0.3608]
[1744814701334,0.1180648,84706.0,84698.0,0.1006]
[1744814701633,0.1180648,84706.0,84705.0,0.16983693]
[1744814701927,0.1181448,84706.0,84705.0,0.16983693]
[1744814702236,0.00188109,84706.0,84705.0,0.62743693]
[1744814702446,0.11821456,84728.0,84705.0,0.75937073]
[1744814702632,0.00017706,84728.0,84727.0,0.1180355]
[1744814702818,0.11937274,84740.0,84733.0,0.1180272]
[1744814703020,0.11937274,84740.0,84736.0,0.118023]
[1744814703231,0.11937274,84740.0,84738.0,0.1180202]
[1744814703547,0.11937274,84740.0,84739.0,0.1180188]
[1744814703735,0.23739014,84740.0,84739.0,0.2980188]
[1744814703945,0.1180202,84738.0,84737.0,0.1562101]
[1744814704140,0.1180202,84738.0,84737.0,0.0972]
[1744814705029,0.1180202,84738.0,84731.0,0.00017706]
[1744814705030,0.1180286,84732.0,84731.0,0.00017706]
[1744814705633,0.4664686,84732.0,84731.0,6e-08]
[1744814705834,0.8788686,84732.0,84731.0,6e-08]
[1744814706237,0.8281286,84732.0,84731.0,6e-08]
[1744814706434,0.8281286,84732.0,84694.0,0.0502]
[1744814706435,0.1180801,84695.0,84694.0,0.0502]
[1744814706652,0.1180801,84695.0,84694.0,0.0984]
[1744814707029,0.1180801,84695.0,84694.0,0.0482]
[1744814707736,0.1180801,84695.0,84694.0,0.0959]
[1744814707940,0.1180801,84695.0,84694.0,0.3869815]
[1744814708529,0.1181601,84695.0,84694.0,0.3869815]
[1744814709138,0.11824826,84703.0,84699.0,0.0590367]
[1744814709343,0.00017706,84703.0,84702.0,0.4788704]
[1744814709638,0.1180648,84708.0,84707.0,0.118063]
[1744814709938,0.1180648,84708.0,84707.0,0.268063]
[1744814710144,0.1180648,84708.0,84707.0,0.15]
[1744814710438,0.1181448,84708.0,84707.0,0.2494]
[1744814710642,0.1181448,84708.0,84707.0,0.0994]
[1744814711233,0.1181448,84708.0,84707.0,0.1004]
[1744814711642,0.1181448,84708.0,84707.0,0.2804]
[1744814711940,0.118062,84708.0,84707.0,0.3984634]
[1744814712246,8e-05,84708.0,84707.0,0.3984634]
[1744814712445,0.118062,84708.0,84707.0,0.4574945]
[1744814712643,0.118142,84708.0,84707.0,0.4574945]
[1744814712840,8e-05,84708.0,84707.0,0.4574945]
[1744814713438,0.00017706,84716.0,84715.0,0.1180522]
[1744814713640,0.0590195,84725.0,84722.0,0.1770603]
[1744814713844,0.0590195,84725.0,84724.0,0.4788397]
[1744814714043,0.0590195,84725.0,84724.0,0.6388397]
[1744814714242,0.0590195,84725.0,84724.0,0.7353397]
[1744814714831,0.00010801,84731.0,84730.0,0.1180313]
[1744814715043,0.00010801,84731.0,84730.0,0.2780313]
[1744814715435,0.11984453,84733.0,84732.0,0.1180286]
[1744814715635,0.11984453,84733.0,84732.0,0.6288286]
[1744814717143,0.12084453,84733.0,84732.0,0.6288286]
[1744814718439,0.001,84733.0,84732.0,0.6288286]
[1744814719153,0.0590073,84742.0,84732.0,0.6288286]
[1744814719154,0.0590073,84742.0,84741.0,0.118016]
[1744814719339,0.0590073,84742.0,84741.0,0.638816]
[1744814719538,0.1180099,84746.0,84745.0,0.1770122]
[1744814719742,0.1180099,84746.0,84745.0,0.4392122]
[1744814720348,0.0640038,84748.0,84747.0,0.1180077]
[1744814720642,0.0640038,84748.0,84747.0,0.2880077]
[1744814721042,0.1230063,84748.0,84747.0,0.2880077]
[1744814721243,0.005,84748.0,84747.0,0.2880077]
[1744814721645,0.0589906,84767.0,84766.0,0.0589894]
[1744814721852,0.1769658,84772.0,84771.0,0.0589857]
[1744814722050,0.7732,84785.0,84758.0,0.00017696]
[1744814722051,0.117991,84759.0,84758.0,0.00017696]
[1744814722245,0.1180174,84740.0,84739.0,0.3608]
[1744814722550,0.1180174,84740.0,84739.0,0.09]
[1744814722739,0.1180174,84740.0,84739.0,0.2080188]
[1744814723752,0.1180974,84740.0,84739.0,0.5688188]
[1744814723942,0.1180974,84740.0,84739.0,0.6649188]
[1744814724140,0.1180174,84740.0,84739.0,0.6649188]
[1744814724345,0.1180974,84740.0,84739.0,0.5479]
[1744814724546,0.11294338,84740.0,84739.0,0.6659188]
[1744814724847,0.11302338,84740.0,84739.0,0.5479]
[1744814725144,0.11302338,84740.0,84739.0,0.6659188]
[1744814725345,8e-05,84740.0,84739.0,0.6659188]
[1744814725552,0.0590066,84743.0,84742.0,0.1180146]
[1744814725750,0.0590066,84743.0,84742.0,0.2980146]
[1744814726143,0.0590866,84743.0,84742.0,0.4010146]
[1744814726344,0.0590866,84743.0,84742.0,0.283]
[1744814726951,0.0590866,84743.0,84742.0,0.232]
[1744814727158,0.0702866,84743.0,84742.0,0.232]
[1744814727355,0.1178866,84743.0,84742.0,0.232]
[1744814727546,0.1066866,84743.0,84742.0,0.232]
[1744814727750,0.1066866,84743.0,84742.0,0.3500146]
[1744814727946,0.1066066,84743.0,84742.0,0.232]
[1744814728154,0.1066866,84743.0,84742.0,0.232]
[1744814730758,0.1066866,84743.0,84742.0,0.3500146]
[1744814731147,0.0590866,84743.0,84742.0,0.3500146]
[1744814731660,0.0590866,84743.0,84742.0,0.232]
[1744814732651,0.1080866,84743.0,84742.0,0.232]
[1744814733850,0.1180286,84732.0,84730.0,0.3608]
[1744814734055,0.1180286,84732.0,84727.0,0.0467]
[1744814734261,0.1180286,84732.0,84728.0,0.0486]
[1744814734449,0.1789286,84732.0,84728.0,0.0486]
[1744814734854,0.18840548,84732.0,84728.0,0.0486]
[1744814735261,0.1180383,84725.0,84724.0,0.0486]
[1744814735453,0.1180383,84725.0,84724.0,0.15]
[1744814735653,0.4788383,84725.0,84724.0,0.15]
[1744814735954,0.1292383,84725.0,84724.0,0.15]
[1744814736154,0.1180305,84734.0,84733.0,0.1770373]
[1744814736360,0.1180305,84734.0,84733.0,0.4160502]
[1744814736559,0.1180305,84734.0,84733.0,0.2980258]
[1744814736766,8e-05,84734.0,84733.0,0.6588258]
[1744814736955,0.0590092,84740.0,84739.0,0.1770247]
[1744814737156,0.0590092,84740.0,84739.0,0.1544087]
[1744814737465,0.0590092,84740.0,84739.0,0.0954]
[1744814737971,0.1097092,84740.0,84739.0,0.2134188]
[1744814738157,0.0590092,84740.0,84739.0,0.2134188]
[1744814738355,0.0590092,84740.0,84739.0,0.3634188]
[1744814738865,0.0590892,84740.0,84739.0,0.3644188]
[1744814739066,0.0590892,84740.0,84739.0,0.2144188]
[1744814739460,0.0590892,84740.0,84739.0,0.3944188]
[1744814740259,0.0590892,84740.0,84739.0,0.3934188]
[1744814740867,0.0590892,84740.0,84739.0,0.3944188]
[1744814741454,0.0590892,84740.0,84739.0,0.2144188]
[1744814741651,0.0590892,84740.0,84739.0,0.0964]
[1744814741861,0.1066892,84740.0,84739.0,0.0964]
[1744814742060,0.1066892,84740.0,84739.0,0.0954]
[1744814742260,0.1066892,84740.0,84739.0,0.0984]
[1744814743870,0.1066892,84740.0,84739.0,0.0964]
[1744814745166,0.1066892,84740.0,84739.0,0.0491]
[1744814745362,0.1180369,84726.0,84719.0,0.00507557]
[1744814745556,0.1180369,84726.0,84720.0,0.097]
[1744814746169,0.1180369,84726.0,84725.0,0.08017696]
[1744814746572,0.1181169,84726.0,84725.0,0.17537696]
[1744814747064,0.1180369,84726.0,84725.0,0.17537696]
[1744814747255,0.1181169,84726.0,84725.0,0.17537696]
[1744814747455,0.1180369,84726.0,84725.0,0.17537696]
[1744814747663,0.1181169,84726.0,84725.0,0.17537696]
[1744814747963,0.1180369,84726.0,84725.0,0.29341526]
[1744814748162,0.1181169,84726.0,84725.0,0.34521526]
[1744814748662,8e-05,84726.0,84725.0,0.34521526]
[1744814749468,0.1180353,84728.0,84727.0,0.1180355]
[1744814749767,0.1180353,84728.0,84727.0,0.2780355]
[1744814750971,0.1180353,84728.0,84727.0,0.2820355]
[1744814751472,0.1180353,84728.0,84727.0,0.2810355]
[1744814752169,0.1180353,84728.0,84727.0,0.003]
[1744814752473,0.1180353,84728.0,84727.0,0.1210355]
[1744814752966,0.1180353,84728.0,84727.0,0.163]
[1744814753170,0.1180353,84728.0,84727.0,0.2810355]
[1744814753471,0.1180353,84728.0,84727.0,0.2800355]
[1744814753662,0.1180353,84728.0,84727.0,0.162]
[1744814754064,0.1180353,84728.0,84727.0,0.002]
[1744814754365,0.1180369,84726.0,84725.0,0.09537696]
[1744814754560,0.1180369,84726.0,84725.0,0.12537696]
[1744814755069,0.1180369,84726.0,84725.0,0.09537696]
[1744814755273,0.1692369,84726.0,84725.0,0.04837696]
[1744814755471,0.1762369,84726.0,84725.0,0.04837696]
[1744814756165,0.1762369,84726.0,84725.0,0.00017696]
[1744814756967,0.1692369,84726.0,84725.0,0.00017696]
[1744814757264,0.1692369,84726.0,84725.0,0.00117696]
[1744814757462,0.1762369,84726.0,84725.0,0.00117696]
[1744814757957,0.1772369,84726.0,84725.0,0.00017696]
[1744814758168,0.1702369,84726.0,84725.0,0.00017696]
[1744814758671,0.17135948,84726.0,84725.0,0.00017696]
[1744814758862,0.17835948,84726.0,84725.0,0.00017696]
[1744814759764,0.1180439,84721.0,84720.0,0.0475]
[1744814760558,0.1180453,84720.0,84714.0,0.3608]
[1744814760769,0.16906788,84720.0,84715.0,0.0508]
[1744814761563,0.16906788,84720.0,84715.0,0.1688518]
[1744814761764,0.16906788,84720.0,84715.0,0.0508]
[1744814761971,0.16914788,84720.0,84715.0,0.0508]
[1744814762163,0.11924788,84720.0,84715.0,0.0508]
[1744814762658,0.11924788,84720.0,84716.0,0.1180503]
[1744814762863,0.11924788,84720.0,84715.0,0.0508]
[1744814763862,0.16804788,84720.0,84715.0,0.0508]
[1744814764160,0.16804788,84720.0,84719.0,0.00607557]
[1744814764976,0.11924788,84720.0,84719.0,0.17607557]
[1744814765358,0.11924788,84720.0,84719.0,0.00607557]
[1744814766071,0.11924788,84720.0,84719.0,0.29412227]
[1744814766072,0.00112258,84720.0,84719.0,0.29412227]
[1744814766259,0.11924788,84720.0,84719.0,0.29412227]
[1744814766465,0.11916788,84720.0,84719.0,0.44582227]
[1744814766775,0.11924788,84720.0,84719.0,0.44582227]
[1744814766966,0.11924788,84720.0,84719.0,0.15777557]
[1744814767366,0.11943002,84720.0,84719.0,0.15777557]
[1744814767567,0.11943002,84720.0,84719.0,0.31777557]
[1744814767876,0.11943002,84720.0,84719.0,0.43582227]
[1744814768370,0.11943002,84720.0,84719.0,0.31777557]
[1744814768670,0.11943002,84720.0,84719.0,0.15777557]